{"text_format":"1","workbook":"xlsx","n_sheets":4,"sheets":["database","client page","home report","home screen"],"not_rendered":{"charts":0,"images":1,"macros":1,"external_links":0,"defined_names":0,"comments":0,"pivot_tables":0},"unopened":[],"bounds":{"document_bytes":16777216,"sheet_cells":100000,"rows_first":2000,"rows_last":500,"rows_between":2000,"halvings":0,"cell_chars":16384,"cell_head_chars":4096},"cells_cut":0,"cells_raw":0,"read":"whole","date_system":"1900"}

{"sheet":"database","index":0,"n_rows":25,"n_cols":6,"rows_kept":25,"cut":false,"hidden":false,"merged":[]}
["الرئيسية",null,"بحث : ","رضا"]
["حسين",33333,90,10,"2019-09-08",80]
["الاسم","رقم التليفون","اجمالى المبلغ","القسط المدفوع","تاريخ القسط","المتبقي"]
["علي",22222,100,30,"2019-09-08",{"$f":"C4-D4","v":70}]
["حسين",33333,90,10,"2019-09-08",{"$f":"C5-D5","v":80}]
["سيد",55555,150,60,null,90]
["احمد",66666,100,60,null,40]
["رضا",null,null,null,null,0]
["مصطفي",null,null,null,null,0]
["علي اسلام",{"$f":"IFERROR(SEARCH($B$2,E4)+ROW()/100000,\"\")","v":""},null,null,null,0]
["هشام ابراهيم",null,null,null,null,0]
["reda",null,null,null,null,0]
["sayed",null,null,null,null,0]
[null,null,null,null,null,0]
[null,null,null,null,null,0]
[null,null,null,null,null,0]
[null,null,null,null,null,0]
[null,null,null,null,null,0]
[null,null,null,null,null,0]
[null,null,null,null,{"$f":"IFERROR(SEARCH($B$2,A20)+ROW()/100000,\"\")","v":""},0]
[null,null,null,null,null,0]
[null,null,null,null,null,0]
[null,null,null,null,null,0]
[null,null,null,null,null,0]
[null,null,null,null,null,0]

{"sheet":"client page","index":1,"n_rows":0,"n_cols":0,"rows_kept":0,"cut":false,"hidden":false,"merged":[]}

{"sheet":"home report","index":2,"n_rows":5,"n_cols":2,"rows_kept":5,"cut":false,"hidden":false,"merged":[]}
[]
["اجمالى عدد الزبائن",{"$f":"COUNTA(database!A4:A17)","v":10}]
["اجمالى المبيعات",{"$f":"SUM(database!C4:C18)","v":440}]
["اجمالى الاقساط المدفوعة",{"$f":"SUM(database!D4:D19)","v":160}]
["اجمالى الاقساط المتبقية",{"$f":"SUM(database!F4:F20)","v":280}]

{"sheet":"home screen","index":3,"n_rows":8,"n_cols":2,"rows_kept":8,"cut":false,"hidden":false,"merged":[]}
[]
[null,"اضافة زبون جديد"]
[]
[null,"تقريرات عن المبيعات"]
[]
[null,"صفحة زبون معين"]
[]
[null,"البحث عن زبون"]